bitfinex-derivatives/quotes_BTCF0:USTF0_20250417
["timestamp","ask_amount","ask_price","bid_price","bid_amount"]
[1744909947773,0.04,85107.0,85106.0,0.1819216]
[1744909948363,0.04008,85107.0,85106.0,0.1819216]
[1744909949073,0.04008,85107.0,85106.0,0.5427216]
[1744909949665,0.04,85107.0,85106.0,0.1819216]
[1744909949865,0.04008,85107.0,85106.0,0.1819216]
[1744909950961,0.04008,85107.0,85106.0,0.5427216]
[1744909953174,0.04008,85107.0,85106.0,0.1819216]
[1744909958979,0.04008,85107.0,85106.0,0.1486216]
[1744909959280,0.2226002,85107.0,85106.0,0.1486216]
[1744909959876,0.1762859,85105.0,85104.0,0.1175244]
[1744909960066,0.1962859,85105.0,85104.0,0.1175244]
[1744909960265,0.2612859,85105.0,85104.0,0.1175244]
[1744909960469,0.085,85105.0,85104.0,0.1175244]
[1744909960669,0.202523,85105.0,85104.0,0.1175244]
[1744909960878,0.085,85105.0,85104.0,0.1175244]
[1744909961177,0.1175258,85103.0,85102.0,0.5370889]
[1744909961378,0.1375258,85103.0,85102.0,0.5370889]
[1744909961778,0.1375258,85103.0,85101.0,0.0001763]
[1744909961969,0.1786272,85102.0,85101.0,0.0001763]
[1744909962175,0.2505272,85102.0,85101.0,0.1177048]
[1744909962371,0.2505272,85102.0,85101.0,0.0001763]
[1744909963775,0.0587781,85081.0,85078.0,0.1763369]
[1744909963975,0.1507575,85080.0,85079.0,0.1486589]
[1744909964300,0.1832575,85080.0,85079.0,0.1796589]
[1744909964581,0.2155575,85080.0,85079.0,0.1796589]
[1744909964783,0.2155575,85080.0,85079.0,0.0311]
[1744909965176,0.0587819,85077.0,85073.0,0.031]
[1744909965478,0.1175658,85075.0,85074.0,0.2662282]
[1744909965877,0.1830658,85075.0,85074.0,0.2662282]
[1744909968188,0.1175658,85075.0,85074.0,0.2662282]
[1744909968389,0.0326,85087.0,85079.0,0.0587788]
[1744909968688,0.547134,85083.0,85082.0,0.1175548]
[1744909968982,0.186334,85083.0,85082.0,0.1175548]
[1744909969378,0.176334,85083.0,85082.0,0.1175548]
[1744909971975,0.176334,85083.0,85082.0,0.1801548]
[1744909972880,0.208034,85083.0,85082.0,0.1801548]
[1744909973381,0.208034,85083.0,85082.0,0.0303]
[1744909973581,0.218034,85083.0,85082.0,0.0303]
[1744909973782,0.218034,85083.0,85082.0,0.1478548]
[1744909974186,0.218034,85083.0,85082.0,0.1781548]
[1744909977600,0.1175603,85078.0,85077.0,0.1175613]
[1744909977796,0.1175603,85078.0,85077.0,0.1497613]
[1744909978097,0.1175686,85072.0,85071.0,0.1177457]
[1744909978293,0.1175686,85072.0,85071.0,0.1499457]
[1744909979088,0.1498686,85072.0,85071.0,0.1820457]
[1744909982592,0.1175686,85072.0,85071.0,0.1820457]
[1744909985900,0.1489686,85072.0,85071.0,0.1820457]
[1744909986302,0.1175686,85072.0,85071.0,0.1820457]
[1744909988200,0.0587758,85085.0,85076.0,0.058781]
[1744909988400,0.1175596,85079.0,85078.0,0.176339]
[1744909988701,0.1579596,85079.0,85078.0,0.176339]
[1744909990812,0.1579596,85079.0,85078.0,0.1175589]
[1744909991708,0.1579596,85079.0,85078.0,0.176339]
[1744909993209,0.1579596,85079.0,85078.0,0.0587801]
[1744909995916,0.1580396,85079.0,85078.0,0.0587801]
[1744909998817,0.1276396,85079.0,85078.0,0.0587801]
[1744909999018,0.1276396,85079.0,85078.0,0.0889801]
[1744910000121,0.1598396,85079.0,85078.0,0.0889801]
[1744910001218,0.1598396,85079.0,85078.0,0.0302]
[1744910001622,0.5206396,85079.0,85078.0,0.0302]
[1744910001919,0.5517396,85079.0,85078.0,0.0302]
[1744910002214,0.1175686,85072.0,85071.0,0.0001763]
[1744910002417,0.1275686,85072.0,85071.0,0.0001763]
[1744910002618,0.4883686,85072.0,85071.0,0.0001763]
[1744910002923,0.20170144,85072.0,85071.0,0.0001763]
[1744910003619,0.56250144,85072.0,85071.0,0.0001763]
[1744910004418,0.117581,85063.0,85062.0,0.0329]
[1744910004716,0.1175852,85060.0,85059.0,0.17899076]
[1744910005021,0.3975852,85060.0,85059.0,0.17899076]
[1744910005418,0.4304852,85060.0,85059.0,0.17899076]
[1744910005810,0.4618852,85060.0,85059.0,0.17899076]
[1744910007417,0.4618852,85060.0,85054.0,0.0637]
[1744910007418,0.1175921,85055.0,85054.0,0.0637]
[1744910007610,0.1275921,85055.0,85054.0,0.0308]
[1744910008321,0.1608921,85055.0,85054.0,0.1483935]
[1744910008712,0.1276721,85055.0,85054.0,0.1483935]
[1744910009124,0.1275921,85055.0,85054.0,0.1483935]
[1744910009423,0.1276721,85055.0,85054.0,0.1483935]
[1744910010623,0.1176721,85055.0,85054.0,0.1483935]
[1744910010825,8e-05,85055.0,85054.0,0.1483935]
[1744910011123,0.1175921,85055.0,85054.0,0.1483935]
[1744910011324,0.1176721,85055.0,85054.0,0.1483935]
[1744910011526,8e-05,85055.0,85054.0,0.5091935]
[1744910011722,0.1460324,85061.0,85058.0,0.1763785]
[1744910011723,0.117587,85059.0,85058.0,0.1763785]
[1744910011918,0.117587,85059.0,85058.0,0.2351718]
[1744910012327,0.117587,85059.0,85058.0,0.1175866]
[1744910013023,0.117667,85059.0,85058.0,0.1175866]
[1744910015224,0.117667,85059.0,85055.0,0.0319]
[1744910015225,8e-05,85059.0,85055.0,0.0319]
[1744910015520,0.1175907,85056.0,85055.0,0.1494921]
[1744910020432,0.1175907,85056.0,85055.0,0.0319]
[1744910020634,0.1175962,85052.0,85051.0,0.0001763]
[1744910021533,0.1175962,85052.0,85051.0,0.0333763]
[1744910021929,0.1275962,85052.0,85051.0,0.1509739]
[1744910022833,0.1275962,85052.0,85051.0,0.0333763]
[1744910023939,0.1275962,85052.0,85051.0,0.1509739]
[1744910027852,0.1275962,85052.0,85051.0,0.0333763]
[1744910030745,0.1601962,85052.0,85051.0,0.0333763]
[1744910034945,0.1927962,85052.0,85051.0,0.0333763]
[1744910035149,0.1927962,85052.0,85034.0,0.3608]
[1744910035150,0.1176198,85035.0,85034.0,0.3608]
[1744910035553,0.1508198,85035.0,85034.0,0.4784211]
[1744910035944,0.1508198,85035.0,85034.0,0.3608]
[1744910036151,0.1834198,85035.0,85034.0,0.3608]
[1744910036554,0.1934198,85035.0,85034.0,0.3608]
[1744910037149,0.1934198,85035.0,85034.0,0.4784211]
[1744910037856,0.1934198,85035.0,85034.0,0.3608]
[1744910038260,0.1934198,85035.0,85034.0,0.4784211]
[1744910038446,0.1508198,85035.0,85034.0,0.5416211]
[1744910039147,0.1508998,85035.0,85034.0,0.5416211]
[1744910040257,0.03328,85035.0,85034.0,0.5729211]
[1744910040566,8e-05,85035.0,85034.0,0.5729211]
[1744910040753,0.1176154,85039.0,85038.0,0.1176156]
[1744910041261,0.1176154,85039.0,85038.0,0.1812156]
[1744910041460,0.1176954,85039.0,85038.0,0.1812156]
[1744910045251,0.1476954,85039.0,85038.0,0.1812156]
[1744910045756,0.14647,85039.0,85038.0,0.1812156]
[1744910047362,0.11647,85039.0,85038.0,0.1812156]
[1744910047568,8e-05,85039.0,85038.0,0.1812156]
[1744910048857,0.1176942,85039.0,85038.0,0.1812156]
[1744910050166,0.1483942,85039.0,85038.0,0.1812156]
[1744910050368,0.0001763,85043.0,85042.0,0.1176101]
[1744910050662,0.0001763,85043.0,85042.0,0.5413101]
[1744910051564,0.0002563,85043.0,85042.0,0.5413101]
[1744910054269,0.117865,85043.0,85042.0,0.5413101]
[1744910056069,0.148765,85043.0,85042.0,0.4237]
[1744910056275,0.148765,85043.0,85042.0,0.0316]
[1744910056467,0.213365,85043.0,85042.0,0.0316]
[1744910057867,0.213365,85043.0,85042.0,0.1492101]
[1744910058377,0.181165,85043.0,85042.0,0.1492101]
[1744910058579,0.181165,85043.0,85042.0,0.1796101]
[1744910060180,0.0002563,85043.0,85042.0,0.1796101]
[1744910060767,0.0001763,85043.0,85042.0,0.1796101]
[1744910060968,0.0002563,85043.0,85042.0,0.1796101]
[1744910063175,0.117865,85043.0,85042.0,0.1796101]
[1744910063576,0.179665,85043.0,85042.0,0.1796101]
[1744910065279,0.0316563,85043.0,85042.0,0.1796101]
[1744910066674,0.149185,85043.0,85042.0,0.1796101]
[1744910066977,0.149265,85043.0,85042.0,0.5404101]
[1744910068171,0.182365,85043.0,85042.0,0.5404101]
[1744910068373,0.182365,85043.0,85042.0,0.0316]
[1744910068680,0.1764269,85038.0,85037.0,0.1176119]
[1744910068877,0.0588069,85040.0,85034.0,0.3608]
[1744910068878,0.1176198,85035.0,85034.0,0.3608]
[1744910069573,0.1176211,85034.0,85033.0,0.117622]
[1744910069877,0.1176239,85032.0,85031.0,0.4145]
[1744910070082,0.1276239,85032.0,85031.0,0.4145]
[1744910070270,0.1176267,85030.0,85029.0,0.17899076]
[1744910070472,0.0637,85031.0,85030.0,0.1176267]
[1744910070673,0.1813253,85031.0,85030.0,0.5098267]
[1744910070873,0.1813253,85031.0,85030.0,0.1176267]
[1744910071172,0.1176267,85030.0,85029.0,0.1176281]
[1744910071680,0.1802267,85030.0,85029.0,0.1176281]
[1744910072186,8e-05,85031.0,85030.0,0.1176267]
[1744910072478,0.031,85039.0,85035.0,0.1176198]
[1744910072683,0.031,85039.0,85038.0,0.1176156]
[1744910073479,0.031,85039.0,85038.0,0.1810156]
[1744910075487,0.1486142,85039.0,85038.0,0.1810156]
[1744910077090,0.031,85039.0,85038.0,0.1810156]
[1744910077688,0.1486142,85039.0,85038.0,0.1810156]
[1744910078194,0.031,85039.0,85038.0,0.1810156]
[1744910078986,0.031,85039.0,85038.0,0.19281934]
[1744910079590,0.0001763,85043.0,85042.0,0.1176101]
[1744910079786,0.0001763,85043.0,85042.0,0.5419101]
[1744910079978,0.0002563,85043.0,85042.0,0.5419101]
[1744910081592,0.0329563,85043.0,85042.0,0.5419101]
[1744910095494,0.0329563,85043.0,85042.0,0.5117101]
[1744910095889,0.0653563,85043.0,85042.0,0.5117101]
[1744910096091,0.182965,85043.0,85042.0,0.5117101]
[1744910096696,0.0653563,85043.0,85042.0,0.5117101]
[1744910098602,0.182965,85043.0,85042.0,0.5117101]
[1744910100810,0.0753563,85043.0,85042.0,0.4784101]
[1744910100998,0.0753563,85043.0,85042.0,0.5084101]
[1744910101307,0.192965,85043.0,85042.0,0.5084101]
[1744910102606,0.0753563,85043.0,85042.0,0.5084101]
[1744910102999,0.192965,85043.0,85042.0,0.5084101]
[1744910103310,0.182965,85043.0,85042.0,0.5084101]
[1744910104106,0.182965,85043.0,85042.0,0.4784101]
[1744910104611,0.1176101,85042.0,85041.0,0.1176114]
[1744910105013,0.1783101,85042.0,85041.0,0.1176114]
[1744910106512,0.0707,85042.0,85041.0,0.1492114]
[1744910106708,0.0707,85042.0,85041.0,0.2141114]
[1744910107012,0.07078,85042.0,85041.0,0.2141114]
[1744910108110,0.04058,85042.0,85041.0,0.2141114]
[1744910108302,0.0305,85042.0,85041.0,0.2141114]
[1744910108611,0.03058,85042.0,85041.0,0.2141114]
[1744910108814,8e-05,85042.0,85041.0,0.2141114]
[1744910109202,0.0301763,85043.0,85042.0,0.1176101]
[1744910109397,0.0301763,85043.0,85042.0,0.4784101]
[1744910109606,0.0301763,85043.0,85042.0,0.5415101]
[1744910111909,0.147785,85043.0,85042.0,0.5415101]
[1744910114116,0.0301763,85043.0,85042.0,0.5415101]
[1744910127015,0.00019684,85052.0,85051.0,0.1175976]
[1744910127217,0.0622,85067.0,85066.0,0.1175769]
[1744910127424,0.1993755,85067.0,85066.0,0.1175769]
[1744910127735,0.09202322,85077.0,85076.0,0.1175631]
[1744910128027,0.10202322,85077.0,85076.0,0.4783631]
[1744910128222,0.21958492,85077.0,85076.0,0.4783631]
[1744910128414,0.28266492,85077.0,85076.0,0.4783631]
[1744910128620,0.16510322,85077.0,85076.0,0.4783631]
[1744910128922,0.28266492,85077.0,85076.0,0.4783631]
[1744910129617,0.16510322,85077.0,85076.0,0.4783631]
[1744910130423,0.07308,85077.0,85076.0,0.4783631]
[1744910131123,0.1906417,85077.0,85076.0,0.4783631]
[1744910135636,0.07308,85077.0,85076.0,0.4783631]
[1744910135930,0.1585417,85077.0,85076.0,0.4783631]
[1744910136231,0.0309,85077.0,85076.0,0.5084631]
[1744910136525,0.03098,85077.0,85076.0,0.5084631]
[1744910137131,0.03098,85077.0,85076.0,0.5390631]
[1744910137314,0.1485417,85077.0,85076.0,0.5390631]
[1744910137515,0.1485417,85077.0,85076.0,0.4783631]
[1744910137722,0.2119417,85077.0,85076.0,0.4783631]
[1744910138128,0.09438,85077.0,85076.0,0.4783631]
[1744910138426,0.06148,85077.0,85076.0,0.4783631]
[1744910138627,0.06148,85077.0,85076.0,0.5089631]
[1744910139025,0.06148,85077.0,85076.0,0.5390631]
[1744910139026,0.1790417,85077.0,85076.0,0.5390631]
[1744910140726,0.06148,85077.0,85076.0,0.5390631]
[1744910141521,0.1790417,85077.0,85076.0,0.5390631]
[1744910142333,0.1485417,85077.0,85076.0,0.5390631]
[1744910143322,0.03098,85077.0,85076.0,0.5390631]
[1744910143835,0.00010801,85082.0,85081.0,0.1175562]
[1744910144036,0.00010801,85082.0,85081.0,0.1798562]
[1744910144234,0.0315,85084.0,85083.0,0.1175534]
[1744910144543,0.159052,85084.0,85083.0,0.4783534]
[1744910144732,0.222252,85084.0,85083.0,0.4783534]
[1744910145133,0.222252,85084.0,85083.0,0.5090534]
[1744910145836,0.191752,85084.0,85083.0,0.5090534]
[1744910146040,0.191752,85084.0,85083.0,0.5394534]
[1744910146341,0.0742,85084.0,85083.0,0.5394534]
[1744910147132,0.0315,85084.0,85083.0,0.5394534]
[1744910147332,0.03158,85084.0,85083.0,0.5394534]
[1744910149639,8e-05,85084.0,85083.0,0.5394534]
[1744910150030,0.0327,85087.0,85083.0,0.4219]
[1744910150231,0.117521,85107.0,85083.0,0.4219]
[1744910150439,0.1175245,85104.0,85103.0,0.5370852]
[1744910150738,0.1275245,85104.0,85103.0,0.5701852]
[1744910150943,0.1276045,85104.0,85103.0,0.5701852]
[1744910151141,0.1275245,85104.0,85103.0,0.5701852]
[1744910151439,0.1276045,85104.0,85103.0,0.5701852]
[1744910152237,0.01008,85104.0,85103.0,0.5701852]
[1744910152942,0.04168,85104.0,85103.0,0.5701852]
[1744910154239,0.07188,85104.0,85103.0,0.5701852]
[1744910156640,0.1894044,85104.0,85103.0,0.5701852]
[1744910156842,0.1894044,85104.0,85103.0,0.4526622]
[1744910161846,0.1894044,85104.0,85103.0,0.4838622]
[1744910162048,0.1894044,85104.0,85103.0,0.0331]
[1744910162649,0.1763004,85098.0,85097.0,0.0332]
[1744910162950,0.1175341,85097.0,85096.0,0.3608]
[1744910163137,0.2321341,85097.0,85096.0,0.3608]
[1744910164150,0.2321341,85097.0,85096.0,0.4783354]
[1744910164346,0.02,85097.0,85096.0,0.5115354]
[1744910164553,0.08656,85101.0,85098.0,0.0587656]
[1744910164848,0.1862956,85101.0,85100.0,0.1175299]
[1744910165238,0.1862956,85101.0,85100.0,0.1494299]
[1744910165438,0.1863756,85101.0,85100.0,0.1494299]
[1744910166950,0.1175299,85100.0,85099.0,0.032]
[1744910167244,0.1175341,85097.0,85096.0,0.3608]
[1744910167448,0.1175354,85096.0,85095.0,0.0001763]
[1744910167748,0.2257354,85096.0,85095.0,0.0001763]
[1744910168942,0.6730954,85096.0,85095.0,3.013e-05]
[1744910170750,0.5865354,85096.0,85095.0,3.013e-05]
[1744910170949,0.6730954,85096.0,85095.0,3.013e-05]
[1744910171451,0.3122954,85096.0,85095.0,3.013e-05]
[1744910183460,0.2790954,85096.0,85095.0,3.013e-05]
[1744910188468,0.1175423,85091.0,85090.0,0.0312]
[1744910188666,0.1375423,85091.0,85090.0,0.0312]
[1744910195569,0.1376223,85091.0,85090.0,0.0312]
[1744910195768,0.1375423,85091.0,85090.0,0.1487437]
[1744910195963,0.1376223,85091.0,85090.0,0.1487437]
[1744910196163,0.1376223,85091.0,85090.0,0.1792437]
[1744910197075,0.02008,85091.0,85090.0,0.1792437]
[1744910197267,0.1375423,85091.0,85090.0,0.1792437]
[1744910197468,0.1376223,85091.0,85090.0,0.1792437]
[1744910197668,0.1376223,85091.0,85090.0,0.0617]
[1744910198166,0.1376223,85091.0,85090.0,0.1792437]
[1744910199479,0.1376223,85091.0,85090.0,0.0617]
[1744910200376,0.4984223,85091.0,85090.0,0.0312]
[1744910200692,0.5611223,85091.0,85090.0,0.0312]
[1744910200882,0.4984223,85091.0,85090.0,0.0312]
[1744910201465,0.5630223,85091.0,85090.0,0.0312]
[1744910201878,0.2022223,85091.0,85090.0,0.0312]
[1744910202074,0.1376223,85091.0,85090.0,0.0312]
[1744910202581,0.1376223,85091.0,85090.0,0.0627]
[1744910202775,0.1375423,85091.0,85090.0,0.0627]
[1744910203570,0.1376223,85091.0,85090.0,0.0627]
[1744910208073,0.2021223,85091.0,85090.0,0.0627]
[1744910210183,0.2021223,85091.0,85090.0,0.05167385]
[1744910212386,0.1175534,85083.0,85082.0,0.0001763]
[1744910212684,0.1175534,85083.0,85082.0,0.1177311]
[1744910213176,0.1489534,85083.0,85082.0,0.1509311]
[1744910214684,0.1589534,85083.0,85082.0,0.0333763]
[1744910214984,0.1900534,85083.0,85082.0,0.0333763]
[1744910215491,0.1175797,85064.0,85063.0,0.537164]
[1744910215688,0.1175797,85064.0,85063.0,0.5959532]
[1744910215880,0.1175797,85064.0,85063.0,0.4783781]
[1744910216583,0.1507797,85064.0,85063.0,0.4783781]
[1744910217275,0.1507797,85064.0,85063.0,0.5103781]
[1744910218287,0.1507797,85064.0,85063.0,0.032]
[1744910218481,0.1828797,85064.0,85063.0,0.032]
[1744910219785,0.1828797,85064.0,85063.0,0.0645]
[1744910220187,0.1828797,85064.0,85063.0,0.0325]
[1744910220384,0.20488325,85064.0,85063.0,0.0325]
[1744910220589,0.0587939,85059.0,85055.0,0.0001763]
[1744910220888,0.1175893,85057.0,85056.0,0.0306]
[1744910221275,0.1832893,85057.0,85056.0,0.0306]
[1744910221480,0.1832893,85057.0,85056.0,0.1481907]
[1744910221881,0.1506893,85057.0,85056.0,0.1812907]
[1744910222376,0.1507693,85057.0,85056.0,0.1812907]
[1744910222579,0.1507693,85057.0,85056.0,0.0637]
[1744910222985,0.1813693,85057.0,85056.0,0.0637]
[1744910223203,0.1813693,85057.0,85056.0,0.0306]
[1744910223385,0.1175907,85056.0,85055.0,0.0001763]
[1744910223686,0.1275907,85056.0,85055.0,0.0001763]
[1744910223997,0.1881907,85056.0,85055.0,0.0001763]
[1744910225081,0.1881907,85056.0,85055.0,0.1177684]
[1744910225284,0.03,85056.0,85055.0,0.1478684]
[1744910225490,0.1175907,85056.0,85055.0,0.1478684]
[1744910225777,0.1175907,85056.0,85055.0,0.1798684]
[1744910226489,0.1176707,85056.0,85055.0,0.1798684]
[1744910227682,0.1509707,85056.0,85055.0,0.1798684]
[1744910228792,8e-05,85056.0,85055.0,0.1798684]
[1744910229088,0.0333,85062.0,85055.0,0.1798684]
[1744910229290,0.1175871,85061.0,85060.0,0.1763763]
[1744910229590,0.11769511,85061.0,85060.0,0.1763763]
[1744910229791,0.1507871,85061.0,85060.0,0.1763763]
[1744910230093,0.1508671,85061.0,85060.0,0.1763763]
[1744910232688,0.1508671,85061.0,85060.0,0.0587925]
[1744910233191,0.0587937,85059.0,85056.0,0.1175894]
[1744910233390,0.1763854,85057.0,85056.0,0.1175894]
[1744910234287,0.1175907,85056.0,85055.0,0.0001763]
[1744910234477,0.1822907,85056.0,85055.0,0.0001763]
[1744910236194,0.1922907,85056.0,85055.0,0.0001763]
[1744910237893,0.1922907,85056.0,85044.0,0.0588035]
[1744910237894,0.0747,85056.0,85039.0,0.1764178]
[1744910238203,0.1176156,85040.0,85039.0,0.1764178]
[1744910238790,0.1501115,85041.0,85040.0,0.1176128]
[1744910239189,0.0325,85041.0,85040.0,0.1176128]
[1744910239588,0.1501115,85041.0,85040.0,0.1176128]
[1744910240086,0.1176115,85041.0,85040.0,0.1176128]
[1744910242393,0.1176115,85041.0,85040.0,0.1484128]
[1744910242797,0.1501074,85044.0,85041.0,0.0588057]
[1744910242997,0.0325,85044.0,85043.0,0.1176087]
[1744910243595,0.0587989,85051.0,85048.0,0.1176018]
[1744910243787,0.1177767,85049.0,85048.0,0.1176018]
[1744910244099,0.1177767,85049.0,85048.0,0.1484018]
[1744910244293,0.15028471,85049.0,85048.0,0.1813018]
[1744910244898,0.18208471,85049.0,85048.0,0.1813018]
[1744910249098,0.18208471,85049.0,85048.0,0.1507018]
[1744910249301,0.1176059,85045.0,85044.0,0.058803]
[1744910249688,0.1923059,85045.0,85044.0,0.058803]
[1744910249888,0.1176073,85044.0,85043.0,0.0331]
[1744910250185,0.1176087,85043.0,85042.0,0.4784091]
[1744910250390,0.1816087,85043.0,85042.0,0.4784091]
[1744910253096,0.19311509,85043.0,85042.0,0.4784091]
[1744910253498,0.20311509,85043.0,85042.0,0.4784091]
[1744910254100,0.1916087,85043.0,85042.0,0.4784091]
[1744910256704,0.1916087,85043.0,85042.0,0.3908]
[1744910256906,0.1816087,85043.0,85042.0,0.5084101]
[1744910259303,0.1176078,85044.0,85043.0,0.1764116]
[1744910259505,0.032,85048.0,85047.0,0.1176032]
[1744910259695,0.1496018,85048.0,85047.0,0.1176032]
[1744910259895,0.1496818,85048.0,85047.0,0.1790032]
[1744910261094,0.03208,85048.0,85047.0,0.1790032]
[1744910261297,8e-05,85048.0,85047.0,0.1790032]
[1744910261494,0.1176818,85048.0,85047.0,0.1790032]
[1744910262096,0.1491818,85048.0,85047.0,0.1790032]
[1744910268411,0.1817818,85048.0,85047.0,0.1790032]
[1744910270400,0.1817818,85048.0,85047.0,0.1480032]
[1744910270605,0.1176032,85047.0,85046.0,0.0588022]
[1744910271100,0.1800032,85047.0,85046.0,0.0588022]
[1744910271510,0.1800032,85047.0,85046.0,0.0897022]
[1744910275209,0.1800032,85047.0,85042.0,0.3608]
[1744910275518,0.1176087,85043.0,85042.0,0.3608]
[1744910275708,0.1276087,85043.0,85042.0,0.3608]
[1744910275908,0.2215087,85043.0,85042.0,0.3608]
[1744910276216,0.2215087,85043.0,85042.0,0.4784101]
[1744910277415,0.2215087,85043.0,85042.0,0.5109101]
[1744910278406,0.0403,85043.0,85042.0,0.5420101]
[1744910278607,0.1579087,85043.0,85042.0,0.5420101]
[1744910278807,0.01,85043.0,85042.0,0.5420101]
[1744910279108,0.1276887,85043.0,85042.0,0.5420101]
[1744910279314,0.1176887,85043.0,85042.0,0.5420101]
[1744910279706,0.1176087,85043.0,85042.0,0.5420101]
[1744910280010,0.1176887,85043.0,85042.0,0.5420101]
[1744910280210,8e-05,85043.0,85042.0,0.5420101]
[1744910280412,0.11771121,85047.0,85046.0,0.1176045]
[1744910280912,0.1176032,85047.0,85046.0,0.1794045]
[1744910281616,0.0001763,85049.0,85048.0,0.1176018]
[1744910281814,0.0001763,85049.0,85046.0,0.0618]
[1744910281815,0.00010801,85053.0,85052.0,0.1175962]
[1744910282005,0.0587933,85059.0,85058.0,0.1175879]
[1744910282720,0.0588733,85059.0,85058.0,0.1806879]
[1744910284320,0.0901733,85059.0,85058.0,0.1806879]
[1744910284619,0.0588733,85059.0,85058.0,0.1806879]
[1744910285919,0.0901733,85059.0,85058.0,0.1806879]
[1744910286318,0.1001733,85059.0,85058.0,0.1806879]
[1744910286518,0.1333733,85059.0,85058.0,0.1806879]
[1744910289018,0.1233733,85059.0,85058.0,0.1806879]
[1744910290913,0.0901733,85059.0,85058.0,0.1806879]
[1744910291110,8e-05,85059.0,85058.0,0.1806879]
[1744910291611,0.0587926,85060.0,85059.0,0.1763763]
[1744910292023,0.1763792,85060.0,85059.0,0.2377763]
[1744910293319,0.1763792,85060.0,85059.0,0.0614]
[1744910293525,0.1863792,85060.0,85059.0,0.0614]
[1744910294124,0.2488792,85060.0,85059.0,0.1789866]
[1744910297926,0.2388792,85060.0,85059.0,0.1789866]
[1744910298122,0.0587958,85056.0,85050.0,0.0001763]
[1744910298323,0.1175976,85051.0,85050.0,0.0001763]
[1744910298524,0.1176128,85040.0,85039.0,0.0629]
[1744910298726,0.1176198,85035.0,85034.0,0.0314]
[1744910298914,0.1176239,85032.0,85031.0,0.117625]
[1744910299521,0.1176239,85032.0,85031.0,0.510625]
[1744910304625,0.0588093,85037.0,85036.0,0.1764241]
[1744910304828,0.1764307,85037.0,85036.0,0.117617]
[1744910305125,0.2097307,85037.0,85036.0,0.117617]
[1744910305517,0.2097307,85037.0,85036.0,0.0588085]
[1744910305834,0.2097307,85037.0,85027.0,0.0314]
[1744910305835,0.117635,85024.0,85023.0,0.36097641]
[1744910306029,0.127635,85024.0,85023.0,0.00017641]
[1744910306220,0.488435,85024.0,85023.0,0.00017641]
[1744910306425,0.222735,85024.0,85023.0,0.00017641]
[1744910306625,0.32059799,85024.0,85023.0,0.00017641]
[1744910306830,0.308735,85024.0,85023.0,0.00017641]
[1744910308224,0.31764096,85024.0,85023.0,0.00017641]
[1744910310829,0.67844096,85024.0,85023.0,0.00017641]
[1744910312434,0.31764096,85024.0,85023.0,0.00017641]
[1744910315534,0.23164096,85024.0,85023.0,0.00017641]
[1744910315833,0.31764096,85024.0,85023.0,0.00017641]
[1744910317334,0.117653,85011.0,85010.0,0.031388]
[1744910317734,0.148853,85011.0,85010.0,0.0312]
[1744910318234,0.1176571,85008.0,85007.0,0.0316]
[1744910318433,0.1176571,85008.0,85006.0,0.0001458]
[1744910318434,0.1176585,85007.0,85006.0,0.0001458]
[1744910318634,0.1176599,85006.0,85005.0,0.0050585]
[1744910319031,0.1488599,85006.0,85005.0,0.0050585]
[1744910319331,0.1488599,85006.0,85005.0,0.1227198]
[1744910319741,0.1789599,85006.0,85005.0,0.1227198]
[1744910320038,0.1789599,85006.0,85005.0,0.0050585]
[1744910321340,0.1176668,85001.0,85000.0,0.1]
[1744910321542,0.4784668,85001.0,85000.0,0.1]
[1744910321732,0.5743668,85001.0,85000.0,0.1]
[1744910322034,0.5743668,85001.0,85000.0,0.13148]
[1744910322443,0.8443668,85001.0,85000.0,0.13148]
[1744910322639,0.8443668,85001.0,84990.0,0.3608]
[1744910322640,0.1176806,84991.0,84990.0,0.3608]
[1744910322830,0.0588368,84996.0,84966.0,0.4145]
[1744910322831,0.1765389,84983.0,84982.0,0.1765384]
[1744910323135,0.1765389,84983.0,84982.0,0.2408184]
[1744910323843,0.0588458,84983.0,84982.0,0.2408184]
[1744910325638,0.058835,84999.0,84990.0,0.117682]
[1744910325940,0.08588,85002.0,84990.0,0.117682]
[1744910325941,0.08588,85002.0,85001.0,0.1176668]
[1744910326136,0.0588239,85015.0,85001.0,0.3608]
[1744910326441,0.1764727,85015.0,85014.0,0.117646]
[1744910326937,0.1764727,85015.0,85014.0,0.209946]
[1744910327330,0.0589039,85015.0,85014.0,0.209946]
[1744910327838,0.0588239,85015.0,85014.0,0.209946]
[1744910328042,0.0589039,85015.0,85014.0,0.209946]
[1744910336934,0.0589039,85015.0,85014.0,0.0303]
[1744910337138,0.1203039,85015.0,85014.0,0.0303]
[1744910337336,0.1535039,85015.0,85014.0,0.1479488]
[1744910337536,0.1176488,85014.0,85013.0,0.3608]
[1744910338041,0.1790488,85014.0,85013.0,0.5094502]
[1744910338547,0.1477488,85014.0,85013.0,0.5094502]
[1744910338845,0.1478288,85014.0,85013.0,0.5416502]
[1744910342550,0.1798288,85014.0,85013.0,0.5416502]
[1744910343840,0.1478288,85014.0,85013.0,0.5416502]
[1744910344240,8e-05,85014.0,85013.0,0.5416502]
[1744910344744,0.1764607,85020.0,85019.0,0.1176405]
[1744910345149,0.1176488,85015.0,85014.0,0.1176476]
[1744910345646,0.1497488,85015.0,85014.0,0.1176476]
[1744910347043,0.1176423,85019.0,85018.0,0.2352823]
[1744910347547,0.1177223,85019.0,85018.0,0.2352823]
[1744910347746,0.1177223,85019.0,85018.0,0.1176418]
[1744910347945,0.1490223,85019.0,85018.0,0.1176418]
[1744910348447,0.1490223,85019.0,85011.0,8e-05]
[1744910348448,0.058822,85018.0,85011.0,8e-05]
[1744910348647,0.1176585,85008.0,85007.0,0.1176579]
[1744910349537,0.1505585,85008.0,85007.0,0.1176579]
[1744910349941,0.1505585,85008.0,85007.0,0.4784579]
[1744910350344,0.1176585,85008.0,85007.0,0.4784579]
[1744910351245,0.1176585,85008.0,85007.0,0.3608]
[1744910351436,0.1811585,85008.0,85007.0,0.4784585]
[1744910353738,0.1811585,85008.0,85007.0,0.3608]
[1744910354344,0.1811585,85008.0,85007.0,0.36088]
[1744910354749,0.1811585,85008.0,85007.0,8e-05]
[1744910355151,0.1811585,85008.0,85006.0,0.00017641]
[1744910355152,0.1176585,85007.0,85006.0,0.00017641]
[1744910355349,0.5086585,85007.0,85006.0,0.00017641]
[1744910355546,0.5702585,85007.0,85006.0,0.00017641]
[1744910357351,0.5802585,85007.0,85006.0,0.00017641]
[1744910357553,0.1176945,84981.0,84977.0,0.36256248]
[1744910357854,0.1176959,84980.0,84977.0,0.00176248]
[1744910358051,0.1484959,84980.0,84977.0,0.00241625]
[1744910358268,0.1484959,84980.0,84976.0,0.23865434]
[1744910358269,0.2195959,84980.0,84976.0,0.23865434]
[1744910358450,0.2195959,84980.0,84979.0,0.00514004]
[1744910358650,0.5803959,84980.0,84979.0,0.00514004]